[Event "Late-Titled-Tuesday-Blitz-September-26-2023"]
[Site "Chess.com"]
[Date "2023.09.26"]
[Round "8"]
[White "Eloist"]
[Black "The_Princess_Moon"]
[Result "0-1"]
[WhiteElo "2464"]
[BlackElo "2293"]
[TimeControl "180+1"]
[EndTime "15:24:03 PDT"]
[Termination "The_Princess_Moon won by checkmate"]

1. e4 {[%clk 0:03:00.9]} 1... c5 {[%clk 0:02:58.6]} 2. Nf3 {[%clk 0:03:00.7]}
2... a6 {[%clk 0:02:54.8]} 3. g3 {[%clk 0:02:57]} 3... b5 {[%clk 0:02:53.4]} 4.
Bg2 {[%clk 0:02:56.9]} 4... Bb7 {[%clk 0:02:54]} 5. Qe2 {[%clk 0:02:56.8]} 5...
Nc6 {[%clk 0:02:50.4]} 6. O-O {[%clk 0:02:56.4]} 6... Nd4 {[%clk 0:02:48.7]} 7.
Nxd4 {[%clk 0:02:55.8]} 7... cxd4 {[%clk 0:02:49.6]} 8. c3 {[%clk 0:02:56.2]}
8... dxc3 {[%clk 0:02:40.1]} 9. Nxc3 {[%clk 0:02:57.1]} 9... e6 {[%clk
0:02:33.8]} 10. d4 {[%clk 0:02:54.9]} 10... Bb4 {[%clk 0:02:24.9]} 11. Qg4
{[%clk 0:02:50.8]} 11... g6 {[%clk 0:02:19.3]} 12. Bg5 {[%clk 0:02:47.8]} 12...
Be7 {[%clk 0:02:15.3]} 13. h4 {[%clk 0:02:39]} 13... h6 {[%clk 0:02:13.2]} 14.
Bxe7 {[%clk 0:02:38]} 14... Qxe7 {[%clk 0:02:08.2]} 15. d5 {[%clk 0:02:35.1]}
15... Nf6 {[%clk 0:01:56.1]} 16. Qf4 {[%clk 0:02:23.6]} 16... e5 {[%clk
0:01:52.5]} 17. Qe3 {[%clk 0:02:22.1]} 17... d6 {[%clk 0:01:42]} 18. a4 {[%clk
0:02:19.8]} 18... b4 {[%clk 0:01:40.2]} 19. Na2 {[%clk 0:02:19.6]} 19... a5
{[%clk 0:01:39.3]} 20. Rfc1 {[%clk 0:02:15.2]} 20... Kf8 {[%clk 0:01:37.3]} 21.
Rc2 {[%clk 0:02:11.1]} 21... Kg7 {[%clk 0:01:36.1]} 22. Rac1 {[%clk 0:02:09.1]}
22... Rac8 {[%clk 0:01:33.9]} 23. Bh3 {[%clk 0:02:08.6]} 23... Rxc2 {[%clk
0:01:30.2]} 24. Rxc2 {[%clk 0:02:09.5]} 24... Rb8 {[%clk 0:01:22.3]} 25. Nc1
{[%clk 0:02:03.9]} 25... Qe8 {[%clk 0:01:07.1]} 26. Qa7 {[%clk 0:01:44.3]} 26...
Nxe4 {[%clk 0:00:37.3]} 27. Qxa5 {[%clk 0:01:19.4]} 27... Nf6 {[%clk 0:00:24.1]}
28. Qxb4 {[%clk 0:01:11.1]} 28... Bxd5 {[%clk 0:00:22.4]} 29. Qxd6 {[%clk
0:01:10.9]} 29... Ba8 {[%clk 0:00:20.6]} 30. Rc7 {[%clk 0:01:08]} 30... Rd8
{[%clk 0:00:20.4]} 31. Qc5 {[%clk 0:00:57.4]} 31... Qxa4 {[%clk 0:00:18]} 32.
Be6 {[%clk 0:00:54.7]} 32... Qd1+ {[%clk 0:00:16.6]} 33. Kh2 {[%clk 0:00:52.9]}
33... Qh1# {[%clk 0:00:16.5]} 0-1

[Event "Late-Titled-Tuesday-Blitz-September-26-2023"]
[Site "Chess.com"]
[Date "2023.09.26"]
[Round "8"]
[White "snowlord"]
[Black "BillieKimbah"]
[Result "0-1"]
[WhiteElo "2884"]
[BlackElo "2979"]
[TimeControl "180+1"]
[EndTime "15:24:06 PDT"]
[Termination "BillieKimbah won by resignation"]

1. e4 {[%clk 0:03:00.9]} 1... c5 {[%clk 0:02:59.6]} 2. Nf3 {[%clk 0:02:50.7]}
2... d6 {[%clk 0:02:59.8]} 3. d4 {[%clk 0:02:47.7]} 3... cxd4 {[%clk 0:03:00.7]}
4. Nxd4 {[%clk 0:02:48.1]} 4... Nf6 {[%clk 0:03:01.1]} 5. Nc3 {[%clk 0:02:48.8]}
5... a6 {[%clk 0:03:00.5]} 6. b3 {[%clk 0:02:47.7]} 6... e5 {[%clk 0:02:57.2]}
7. Nde2 {[%clk 0:02:43.9]} 7... b5 {[%clk 0:02:52.3]} 8. Ng3 {[%clk 0:02:37.5]}
8... Bb7 {[%clk 0:02:51.5]} 9. Bd3 {[%clk 0:02:34.2]} 9... Nbd7 {[%clk 0:02:50]}
10. O-O {[%clk 0:02:34.2]} 10... Rc8 {[%clk 0:02:49.3]} 11. Bd2 {[%clk
0:02:31.9]} 11... g6 {[%clk 0:02:45.3]} 12. a4 {[%clk 0:02:12.5]} 12... b4
{[%clk 0:02:45.2]} 13. Na2 {[%clk 0:02:12.4]} 13... a5 {[%clk 0:02:44.7]} 14. c3
{[%clk 0:02:12.8]} 14... h5 {[%clk 0:02:40.3]} 15. cxb4 {[%clk 0:01:55.9]} 15...
h4 {[%clk 0:02:40.1]} 16. Ne2 {[%clk 0:01:56.6]} 16... h3 {[%clk 0:02:38.1]} 17.
g3 {[%clk 0:01:45.4]} 17... axb4 {[%clk 0:02:35.6]} 18. Bxb4 {[%clk 0:01:32]}
18... Nxe4 {[%clk 0:02:24.4]} 19. Nec3 {[%clk 0:01:31.7]} 19... Ng5 {[%clk
0:01:44.2]} 20. Be2 {[%clk 0:01:22.5]} 20... Qb6 {[%clk 0:01:42.9]} 21. Nd5
{[%clk 0:01:09.9]} 21... Qd4 {[%clk 0:01:39.8]} 22. Qxd4 {[%clk 0:01:05.2]}
22... exd4 {[%clk 0:01:40.7]} 23. Nf4 {[%clk 0:01:02.7]} 23... Ne5 {[%clk
0:01:39]} 24. Rfe1 {[%clk 0:00:53.2]} 24... Be7 {[%clk 0:01:29]} 25. Kf1 {[%clk
0:00:21.6]} 25... Ngf3 {[%clk 0:01:17.1]} 26. Bb5+ {[%clk 0:00:21.7]} 26... Kf8
{[%clk 0:01:15.5]} 27. Rec1 {[%clk 0:00:22.4]} 27... Nxh2+ {[%clk 0:01:12.5]}
28. Ke2 {[%clk 0:00:23]} 28... Nhf3 {[%clk 0:01:02.7]} 29. Rxc8+ {[%clk
0:00:20]} 29... Bxc8 {[%clk 0:01:03.6]} 30. Rc1 {[%clk 0:00:20.4]} 30... Bg4
{[%clk 0:01:03.6]} 31. a5 {[%clk 0:00:11.7]} 31... h2 {[%clk 0:01:03.3]} 32. Rh1
{[%clk 0:00:11.7]} 32... d3+ {[%clk 0:01:00.9]} 33. Nxd3 {[%clk 0:00:09]} 33...
Nd4+ {[%clk 0:01:00.4]} 34. Ke3 {[%clk 0:00:09.1]} 34... Nxb5 {[%clk 0:00:59.3]}
0-1

[Event "Late-Titled-Tuesday-Blitz-September-26-2023"]
[Site "Chess.com"]
[Date "2023.09.26"]
[Round "8"]
[White "MaxLeto"]
[Black "Defenstrator"]
[Result "0-1"]
[WhiteElo "2492"]
[BlackElo "2393"]
[TimeControl "180+1"]
[EndTime "15:24:06 PDT"]
[Termination "Defenstrator won on time"]

1. d4 {[%clk 0:02:55.3]} 1... d6 {[%clk 0:02:57.5]} 2. Bf4 {[%clk 0:02:53.9]}
2... h5 {[%clk 0:02:48.8]} 3. e3 {[%clk 0:02:49.2]} 3... e5 {[%clk 0:02:47.3]}
4. dxe5 {[%clk 0:02:30.4]} 4... g5 {[%clk 0:02:46.5]} 5. exd6 {[%clk 0:02:01.2]}
5... gxf4 {[%clk 0:02:34.4]} 6. Qd4 {[%clk 0:02:01.8]} 6... Rh6 {[%clk
0:02:13.4]} 7. dxc7 {[%clk 0:01:46.3]} 7... Qxc7 {[%clk 0:02:10.7]} 8. Nc3
{[%clk 0:01:33.1]} 8... fxe3 {[%clk 0:02:02.6]} 9. O-O-O {[%clk 0:01:28.5]} 9...
Nc6 {[%clk 0:01:53.9]} 10. Bb5 {[%clk 0:01:25.8]} 10... Rd6 {[%clk 0:01:45.4]}
11. Qxe3+ {[%clk 0:01:22.5]} 11... Be6 {[%clk 0:01:43.3]} 12. Nge2 {[%clk
0:01:11.5]} 12... Bh6 {[%clk 0:01:37]} 13. f4 {[%clk 0:01:06.5]} 13... O-O-O
{[%clk 0:01:31.1]} 14. Bxc6 {[%clk 0:01:00]} 14... Rxd1+ {[%clk 0:01:23.1]} 15.
Rxd1 {[%clk 0:00:42]} 15... Rxd1+ {[%clk 0:01:22.5]} 16. Nxd1 {[%clk 0:00:42.9]}
16... Qxc6 {[%clk 0:01:08.1]} 17. Qxa7 {[%clk 0:00:34.5]} 17... Qxg2 {[%clk
0:01:06.1]} 18. Qa8+ {[%clk 0:00:22.4]} 18... Kd7 {[%clk 0:01:03.7]} 19. Ndc3
{[%clk 0:00:16.8]} 19... Bxf4+ {[%clk 0:00:48.2]} 20. Nxf4 {[%clk 0:00:05.6]}
20... Qf1+ {[%clk 0:00:48.2]} 21. Nd1 {[%clk 0:00:01.6]} 21... Qxf4+ {[%clk
0:00:48.2]} 22. Kb1 {[%clk 0:00:02.5]} 22... Qf3 {[%clk 0:00:44.2]} 23. Kc1
{[%clk 0:00:01.9]} 23... Bg4 {[%clk 0:00:39.5]} 0-1

[Event "Late-Titled-Tuesday-Blitz-September-26-2023"]
[Site "Chess.com"]
[Date "2023.09.26"]
[Round "8"]
[White "pedromartinez91"]
[Black "PepeCuenca"]
[Result "0-1"]
[WhiteElo "2550"]
[BlackElo "2690"]
[TimeControl "180+1"]
[EndTime "15:24:07 PDT"]
[Termination "PepeCuenca won by resignation"]

1. g4 {[%clk 0:02:56.1]} 1... h5 {[%clk 0:02:54.4]} 2. g5 {[%clk 0:02:55]} 2...
e5 {[%clk 0:02:51]} 3. h4 {[%clk 0:02:54.5]} 3... d5 {[%clk 0:02:50.4]} 4. d3
{[%clk 0:02:54.3]} 4... g6 {[%clk 0:02:44.2]} 5. Bg2 {[%clk 0:02:52.3]} 5... c6
{[%clk 0:02:40.3]} 6. e4 {[%clk 0:02:51.1]} 6... Bg7 {[%clk 0:02:36.5]} 7. Nc3
{[%clk 0:02:50.4]} 7... Ne7 {[%clk 0:02:35.8]} 8. Bd2 {[%clk 0:02:36.2]} 8...
O-O {[%clk 0:02:34.2]} 9. Bh3 {[%clk 0:02:36.7]} 9... Na6 {[%clk 0:02:27]} 10.
Qe2 {[%clk 0:02:32.5]} 10... Re8 {[%clk 0:02:18.4]} 11. a3 {[%clk 0:02:27.3]}
11... Nc5 {[%clk 0:02:15.9]} 12. O-O-O {[%clk 0:02:23.2]} 12... Ne6 {[%clk
0:02:07.6]} 13. Nf3 {[%clk 0:02:18.8]} 13... d4 {[%clk 0:02:02.2]} 14. Na2
{[%clk 0:02:18.5]} 14... c5 {[%clk 0:02:01]} 15. Kb1 {[%clk 0:02:16.3]} 15...
Nc6 {[%clk 0:01:55]} 16. Ne1 {[%clk 0:02:11.6]} 16... b5 {[%clk 0:01:46.8]} 17.
Ng2 {[%clk 0:02:05.4]} 17... a5 {[%clk 0:01:31.6]} 18. f4 {[%clk 0:02:04.9]}
18... exf4 {[%clk 0:01:31.9]} 19. Nxf4 {[%clk 0:02:05.8]} 19... Nxf4 {[%clk
0:01:22.5]} 20. Bxf4 {[%clk 0:02:06.7]} 20... Bxh3 {[%clk 0:01:22.3]} 21. Rxh3
{[%clk 0:02:07.6]} 21... Qd7 {[%clk 0:01:20.5]} 22. Rf3 {[%clk 0:02:04.8]} 22...
a4 {[%clk 0:01:10.1]} 23. Bd2 {[%clk 0:01:33.6]} 23... Rab8 {[%clk 0:01:09.1]}
24. Rdf1 {[%clk 0:01:28.5]} 24... Re7 {[%clk 0:01:07.2]} 25. Qh2 {[%clk
0:01:20.8]} 25... Be5 {[%clk 0:01:02.1]} 26. Qh3 {[%clk 0:01:12.2]} 26... Qd6
{[%clk 0:01:02]} 27. Rf6 {[%clk 0:01:07]} 27... Bxf6 {[%clk 0:00:51.8]} 28. gxf6
{[%clk 0:01:05.4]} 28... Re6 {[%clk 0:00:48.4]} 29. Rf5 {[%clk 0:00:52.8]} 29...
gxf5 {[%clk 0:00:28.1]} 30. Qg2+ {[%clk 0:00:51.9]} 30... Kf8 {[%clk 0:00:28.5]}
31. Qg7+ {[%clk 0:00:52.6]} 31... Ke8 {[%clk 0:00:28.9]} 32. Qg8+ {[%clk
0:00:53.3]} 32... Qf8 {[%clk 0:00:28.5]} 33. Qg5 {[%clk 0:00:50]} 33... fxe4
{[%clk 0:00:25.9]} 34. Bf4 {[%clk 0:00:50]} 34... Rd8 {[%clk 0:00:23.2]} 0-1

[Event "Late-Titled-Tuesday-Blitz-September-26-2023"]
[Site "Chess.com"]
[Date "2023.09.26"]
[Round "8"]
[White "miraitrunks"]
[Black "pirulillo"]
[Result "1-0"]
[WhiteElo "2179"]
[BlackElo "2350"]
[TimeControl "180+1"]
[EndTime "15:24:10 PDT"]
[Termination "miraitrunks won by resignation"]

1. e4 {[%clk 0:03:00]} 1... c5 {[%clk 0:02:59.3]} 2. Nf3 {[%clk 0:02:59.5]} 2...
e6 {[%clk 0:03:00.2]} 3. d3 {[%clk 0:02:58.9]} 3... Nc6 {[%clk 0:02:59.9]} 4.
Nbd2 {[%clk 0:02:59.2]} 4... g6 {[%clk 0:02:59.5]} 5. g3 {[%clk 0:03:00.1]} 5...
Bg7 {[%clk 0:02:59.9]} 6. Bg2 {[%clk 0:03:00.7]} 6... Nge7 {[%clk 0:03:00.5]} 7.
O-O {[%clk 0:03:01.5]} 7... d5 {[%clk 0:03:00.1]} 8. c3 {[%clk 0:03:01.1]} 8...
O-O {[%clk 0:02:59.8]} 9. Qe2 {[%clk 0:03:01]} 9... Qc7 {[%clk 0:02:59.6]} 10.
Re1 {[%clk 0:02:54.3]} 10... b5 {[%clk 0:02:59.3]} 11. Nf1 {[%clk 0:02:53.7]}
11... b4 {[%clk 0:02:58.2]} 12. Bd2 {[%clk 0:02:53.5]} 12... bxc3 {[%clk
0:02:55.9]} 13. Bxc3 {[%clk 0:02:52.8]} 13... Bxc3 {[%clk 0:02:45.5]} 14. bxc3
{[%clk 0:02:53.4]} 14... Qa5 {[%clk 0:02:44.7]} 15. exd5 {[%clk 0:02:50.7]}
15... Nxd5 {[%clk 0:02:43.7]} 16. c4 {[%clk 0:02:48.6]} 16... Nde7 {[%clk
0:02:34.2]} 17. Ne5 {[%clk 0:02:40.5]} 17... Nd4 {[%clk 0:02:32.2]} 18. Qe3
{[%clk 0:02:25.3]} 18... Rb8 {[%clk 0:02:30.6]} 19. Ng4 {[%clk 0:02:11.3]} 19...
Qc7 {[%clk 0:02:18.1]} 20. Qh6 {[%clk 0:02:07.6]} 20... f6 {[%clk 0:02:09.6]}
21. Rab1 {[%clk 0:01:22.9]} 21... Nef5 {[%clk 0:01:49.8]} 22. Qd2 {[%clk
0:01:19.4]} 22... Bb7 {[%clk 0:01:42.3]} 23. f4 {[%clk 0:00:57]} 23... Bxg2
{[%clk 0:01:37.1]} 24. Qxg2 {[%clk 0:00:49.7]} 24... Qa5 {[%clk 0:01:31.8]} 25.
Nxf6+ {[%clk 0:00:47.2]} 25... Kh8 {[%clk 0:01:29]} 26. Nd7 {[%clk 0:00:45.9]}
26... Rxb1 {[%clk 0:01:24.9]} 27. Rxb1 {[%clk 0:00:44]} 27... Rd8 {[%clk
0:01:22.6]} 28. Ne5 {[%clk 0:00:42.4]} 28... Qa4 {[%clk 0:00:39.2]} 29. Nf7+
{[%clk 0:00:31.3]} 29... Kg7 {[%clk 0:00:38.7]} 30. Nxd8 {[%clk 0:00:31.7]}
30... Qd7 {[%clk 0:00:36.9]} 31. Rb7 {[%clk 0:00:30.4]} 1-0

[Event "Late-Titled-Tuesday-Blitz-September-26-2023"]
[Site "Chess.com"]
[Date "2023.09.26"]
[Round "8"]
[White "ValeriyGrinev"]
[Black "ukchessbomber"]
[Result "1-0"]
[WhiteElo "2588"]
[BlackElo "2657"]
[TimeControl "180+1"]
[EndTime "15:24:16 PDT"]
[Termination "ValeriyGrinev won by resignation"]

1. d4 {[%clk 0:02:58.8]} 1... b5 {[%clk 0:02:59.5]} 2. e4 {[%clk 0:02:58.3]}
2... Bb7 {[%clk 0:02:59.3]} 3. Bd3 {[%clk 0:02:58.9]} 3... e6 {[%clk 0:02:57.7]}
4. Qe2 {[%clk 0:02:58.9]} 4... a6 {[%clk 0:02:54.8]} 5. Nf3 {[%clk 0:02:58.4]}
5... d6 {[%clk 0:02:55]} 6. O-O {[%clk 0:02:57.9]} 6... Nd7 {[%clk 0:02:55.5]}
7. a4 {[%clk 0:02:56.5]} 7... b4 {[%clk 0:02:55.4]} 8. Nbd2 {[%clk 0:02:53.4]}
8... c5 {[%clk 0:02:55.6]} 9. c3 {[%clk 0:02:53.2]} 9... bxc3 {[%clk 0:02:55.6]}
10. bxc3 {[%clk 0:02:54.1]} 10... Ngf6 {[%clk 0:02:56]} 11. Rb1 {[%clk
0:02:51.2]} 11... Qc7 {[%clk 0:02:55.7]} 12. d5 {[%clk 0:02:50.1]} 12... e5
{[%clk 0:02:52.5]} 13. Nc4 {[%clk 0:02:48.7]} 13... Be7 {[%clk 0:02:51.9]} 14.
a5 {[%clk 0:02:48]} 14... O-O {[%clk 0:02:51.8]} 15. Bg5 {[%clk 0:02:46.4]}
15... h6 {[%clk 0:02:35]} 16. Bxf6 {[%clk 0:02:43.9]} 16... Bxf6 {[%clk
0:02:35.9]} 17. Nb6 {[%clk 0:02:41.4]} 17... Nxb6 {[%clk 0:02:36]} 18. Rxb6
{[%clk 0:02:42.3]} 18... Rfb8 {[%clk 0:02:22.4]} 19. Nd2 {[%clk 0:02:39.3]}
19... Bd8 {[%clk 0:02:15.4]} 20. Nc4 {[%clk 0:02:29.1]} 20... Qe7 {[%clk
0:02:15.4]} 21. Rxd6 {[%clk 0:02:24.1]} 21... Bxa5 {[%clk 0:01:52]} 22. Qg4
{[%clk 0:02:06.4]} 22... Bc8 {[%clk 0:01:48.8]} 23. Qg3 {[%clk 0:02:07]} 23...
Bxc3 {[%clk 0:01:16.1]} 24. Rxh6 {[%clk 0:02:03.7]} 24... a5 {[%clk 0:00:59.8]}
25. Nb6 {[%clk 0:02:02.6]} 25... Ra7 {[%clk 0:00:42.6]} 26. d6 {[%clk
0:01:54.3]} 26... Qd8 {[%clk 0:00:42.5]} 27. Nd5 {[%clk 0:01:52.4]} 27... g6
{[%clk 0:00:18.1]} 28. Nxc3 {[%clk 0:01:45.9]} 28... Qxd6 {[%clk 0:00:16.2]} 29.
Bc4 {[%clk 0:01:43.9]} 29... Kf8 {[%clk 0:00:04.3]} 30. Rh8+ {[%clk 0:01:41.5]}
30... Kg7 {[%clk 0:00:02.4]} 31. Qh4 {[%clk 0:01:41.4]} 31... Be6 {[%clk
0:00:01.5]} 32. Rh7+ {[%clk 0:01:34.7]} 32... Kg8 {[%clk 0:00:01.3]} 33. Nd5
{[%clk 0:01:34.4]} 33... Bxd5 {[%clk 0:00:01.7]} 34. Bxd5 {[%clk 0:01:34.6]}
34... g5 {[%clk 0:00:01.9]} 35. Rh8+ {[%clk 0:01:31.8]} 35... Kg7 {[%clk
0:00:02.2]} 36. Qh7+ {[%clk 0:01:31.8]} 36... Kf6 {[%clk 0:00:02.8]} 37. Rxb8
{[%clk 0:01:31.9]} 37... Qxb8 {[%clk 0:00:03]} 38. Qh6+ {[%clk 0:01:29.9]} 38...
Ke7 {[%clk 0:00:03.7]} 39. Qxg5+ {[%clk 0:01:30.2]} 39... Kf8 {[%clk 0:00:02.6]}
40. Qf6 {[%clk 0:01:28]} 40... Kg8 {[%clk 0:00:02.8]} 41. h4 {[%clk 0:01:25.1]}
41... a4 {[%clk 0:00:03.1]} 42. h5 {[%clk 0:01:25.5]} 42... a3 {[%clk
0:00:02.4]} 43. h6 {[%clk 0:01:25.8]} 43... Qf8 {[%clk 0:00:03]} 44. Ba2 {[%clk
0:01:22.7]} 44... c4 {[%clk 0:00:02.3]} 45. Rc1 {[%clk 0:01:21.6]} 45... c3
{[%clk 0:00:01.6]} 46. Rxc3 {[%clk 0:01:21]} 46... Rd7 {[%clk 0:00:02]} 1-0

[Event "Late-Titled-Tuesday-Blitz-September-26-2023"]
[Site "Chess.com"]
[Date "2023.09.26"]
[Round "8"]
[White "SEBAZZANO"]
[Black "Kostukov_Alex"]
[Result "0-1"]
[WhiteElo "2220"]
[BlackElo "2400"]
[TimeControl "180+1"]
[EndTime "15:24:16 PDT"]
[Termination "Kostukov_Alex won on time"]

1. d4 {[%clk 0:02:59]} 1... g6 {[%clk 0:02:57.5]} 2. e4 {[%clk 0:02:58.3]} 2...
Bg7 {[%clk 0:02:55.4]} 3. Nc3 {[%clk 0:02:57.9]} 3... d6 {[%clk 0:02:54.6]} 4.
Bf4 {[%clk 0:02:57.3]} 4... e5 {[%clk 0:02:54.1]} 5. dxe5 {[%clk 0:02:56.7]}
5... dxe5 {[%clk 0:02:55]} 6. Qxd8+ {[%clk 0:02:56.2]} 6... Kxd8 {[%clk
0:02:55.9]} 7. O-O-O+ {[%clk 0:02:56.4]} 7... Nd7 {[%clk 0:02:56]} 8. Bg5+
{[%clk 0:02:53.2]} 8... f6 {[%clk 0:02:56.2]} 9. Be3 {[%clk 0:02:53.2]} 9... Bh6
{[%clk 0:02:55.7]} 10. Bxh6 {[%clk 0:02:48.8]} 10... Nxh6 {[%clk 0:02:56.6]} 11.
f3 {[%clk 0:02:38.5]} 11... c6 {[%clk 0:02:54.9]} 12. g3 {[%clk 0:02:32.8]}
12... Ke7 {[%clk 0:02:54.6]} 13. Bh3 {[%clk 0:02:32.5]} 13... Nc5 {[%clk
0:02:54.5]} 14. Bxc8 {[%clk 0:02:31.6]} 14... Rhxc8 {[%clk 0:02:54.3]} 15. Nh3
{[%clk 0:02:23.9]} 15... a5 {[%clk 0:02:51.7]} 16. Nf2 {[%clk 0:01:56.3]} 16...
b5 {[%clk 0:02:46]} 17. Nd3 {[%clk 0:01:55.1]} 17... Nxd3+ {[%clk 0:02:44.6]}
18. Rxd3 {[%clk 0:01:54.7]} 18... Nf7 {[%clk 0:02:40.1]} 19. Rhd1 {[%clk
0:01:52.8]} 19... Rd8 {[%clk 0:02:40.3]} 20. Rxd8 {[%clk 0:01:45]} 20... Nxd8
{[%clk 0:02:40.2]} 21. Kd2 {[%clk 0:01:39.7]} 21... Ne6 {[%clk 0:02:39.3]} 22.
Ne2 {[%clk 0:01:26.5]} 22... f5 {[%clk 0:02:33.1]} 23. Ke3 {[%clk 0:01:12.5]}
23... Nc5 {[%clk 0:02:23]} 24. exf5 {[%clk 0:00:49.8]} 24... gxf5 {[%clk
0:02:22.3]} 25. f4 {[%clk 0:00:45.1]} 25... Nd7 {[%clk 0:02:04.6]} 26. b3 {[%clk
0:00:14.9]} 26... a4 {[%clk 0:01:46.6]} 27. Rd2 {[%clk 0:00:12.6]} 27... c5
{[%clk 0:01:36.5]} 28. h3 {[%clk 0:00:08.8]} 28... e4 {[%clk 0:01:30.2]} 29. g4
{[%clk 0:00:08.2]} 29... Rg8 {[%clk 0:01:22.4]} 30. gxf5 {[%clk 0:00:07]} 30...
Nf6 {[%clk 0:01:22.2]} 31. bxa4 {[%clk 0:00:05.2]} 31... b4 {[%clk 0:01:20.7]}
32. Rd1 {[%clk 0:00:02.9]} 32... Ra8 {[%clk 0:01:18.5]} 33. Ng3 {[%clk
0:00:01.2]} 33... Rxa4 {[%clk 0:01:16.6]} 34. Nxe4 {[%clk 0:00:01.5]} 34... Nxe4
{[%clk 0:01:16.6]} 35. Kxe4 {[%clk 0:00:01.8]} 35... b3+ {[%clk 0:01:17.2]} 36.
Ke5 {[%clk 0:00:02.1]} 36... bxa2 {[%clk 0:01:15.1]} 37. Ra1 {[%clk 0:00:02.2]}
37... c4 {[%clk 0:01:12.2]} 38. Kd4 {[%clk 0:00:01.9]} 38... Kf6 {[%clk
0:01:12]} 0-1

[Event "Late-Titled-Tuesday-Blitz-September-26-2023"]
[Site "Chess.com"]
[Date "2023.09.26"]
[Round "8"]
[White "LeninGuerra"]
[Black "vanyakuba"]
[Result "1-0"]
[WhiteElo "2536"]
[BlackElo "2386"]
[TimeControl "180+1"]
[EndTime "15:24:17 PDT"]
[Termination "LeninGuerra won by resignation"]

1. e4 {[%clk 0:02:49.7]} 1... d5 {[%clk 0:02:59.7]} 2. exd5 {[%clk 0:02:48.9]}
2... Qxd5 {[%clk 0:03:00.6]} 3. d4 {[%clk 0:02:48.7]} 3... e5 {[%clk 0:03:00.4]}
4. Nf3 {[%clk 0:02:48.8]} 4... Bg4 {[%clk 0:02:51.7]} 5. Be2 {[%clk 0:02:26.9]}
5... e4 {[%clk 0:02:16.5]} 6. c4 {[%clk 0:02:10.5]} 6... Qd8 {[%clk 0:01:24.6]}
7. Ng1 {[%clk 0:02:00.9]} 7... Bf5 {[%clk 0:01:22]} 8. Nc3 {[%clk 0:02:00.2]}
8... Nf6 {[%clk 0:01:21]} 9. Be3 {[%clk 0:01:55.3]} 9... Be7 {[%clk 0:01:19.1]}
10. Qb3 {[%clk 0:01:54.8]} 10... O-O {[%clk 0:01:13.9]} 11. Qxb7 {[%clk
0:01:47.7]} 11... Nbd7 {[%clk 0:01:13.7]} 12. Qa6 {[%clk 0:01:47.2]} 12... Rb8
{[%clk 0:00:56.3]} 13. O-O-O {[%clk 0:01:25.3]} 13... Bg6 {[%clk 0:00:27.4]} 14.
Nh3 {[%clk 0:01:21.4]} 14... Rb6 {[%clk 0:00:26.2]} 15. Qa4 {[%clk 0:01:18.9]}
15... Qb8 {[%clk 0:00:25]} 16. Qc2 {[%clk 0:01:16.1]} 16... c5 {[%clk
0:00:15.4]} 17. Na4 {[%clk 0:00:51.6]} 17... Rb4 {[%clk 0:00:10.8]} 18. Nxc5
{[%clk 0:00:50.7]} 18... Bxc5 {[%clk 0:00:08.7]} 19. dxc5 {[%clk 0:00:51.6]}
19... Ne5 {[%clk 0:00:09.1]} 20. Nf4 {[%clk 0:00:49.8]} 20... Nd3+ {[%clk
0:00:06.1]} 21. Nxd3 {[%clk 0:00:47.6]} 21... exd3 {[%clk 0:00:06.5]} 22. Bxd3
{[%clk 0:00:47.8]} 22... Bxd3 {[%clk 0:00:04.7]} 23. Rxd3 {[%clk 0:00:48.7]}
23... Ne4 {[%clk 0:00:03.8]} 24. Rb3 {[%clk 0:00:38.3]} 24... a5 {[%clk
0:00:03.5]} 25. Rxb4 {[%clk 0:00:35.2]} 25... Qxb4 {[%clk 0:00:03.6]} 26. Qxe4
{[%clk 0:00:35.1]} 1-0

[Event "Late-Titled-Tuesday-Blitz-September-26-2023"]
[Site "Chess.com"]
[Date "2023.09.26"]
[Round "8"]
[White "IgorBjelobrk"]
[Black "German_Bazeev"]
[Result "1-0"]
[WhiteElo "2632"]
[BlackElo "2739"]
[TimeControl "180+1"]
[EndTime "15:24:19 PDT"]
[Termination "IgorBjelobrk won by resignation"]

1. d4 {[%clk 0:03:00.9]} 1... Nf6 {[%clk 0:02:42.7]} 2. c4 {[%clk 0:03:01]} 2...
e6 {[%clk 0:02:42.5]} 3. g3 {[%clk 0:03:01]} 3... d5 {[%clk 0:02:42.1]} 4. Nf3
{[%clk 0:03:00.5]} 4... Bb4+ {[%clk 0:02:42.1]} 5. Bd2 {[%clk 0:03:00.5]} 5...
Be7 {[%clk 0:02:42.8]} 6. Bg2 {[%clk 0:03:01]} 6... O-O {[%clk 0:02:43.5]} 7.
O-O {[%clk 0:03:01.4]} 7... c6 {[%clk 0:02:44.2]} 8. Qc2 {[%clk 0:03:01.8]} 8...
Nbd7 {[%clk 0:02:44]} 9. Rd1 {[%clk 0:03:01.9]} 9... h6 {[%clk 0:02:44.4]} 10.
b3 {[%clk 0:02:57.9]} 10... b6 {[%clk 0:02:18.9]} 11. Bc3 {[%clk 0:02:57.8]}
11... Bb7 {[%clk 0:02:18.3]} 12. Nbd2 {[%clk 0:02:58]} 12... b5 {[%clk
0:02:16.5]} 13. e4 {[%clk 0:02:54.2]} 13... dxe4 {[%clk 0:01:24.7]} 14. Nxe4
{[%clk 0:02:53.9]} 14... Nxe4 {[%clk 0:01:15.8]} 15. Qxe4 {[%clk 0:02:54.8]}
15... bxc4 {[%clk 0:00:58.4]} 16. bxc4 {[%clk 0:02:54.4]} 16... Nf6 {[%clk
0:00:59.1]} 17. Qe2 {[%clk 0:02:54.1]} 17... Qc8 {[%clk 0:00:52.4]} 18. Rab1
{[%clk 0:02:45.9]} 18... Rb8 {[%clk 0:00:50.4]} 19. Rb3 {[%clk 0:02:23.1]} 19...
c5 {[%clk 0:00:43.7]} 20. d5 {[%clk 0:02:22.8]} 20... exd5 {[%clk 0:00:28.3]}
21. Qxe7 {[%clk 0:02:22]} 21... Re8 {[%clk 0:00:25.3]} 22. Qd6 {[%clk
0:02:19.9]} 22... Ne4 {[%clk 0:00:23.5]} 23. Qf4 {[%clk 0:02:14.1]} 23... dxc4
{[%clk 0:00:23.4]} 24. Ra3 {[%clk 0:02:12.9]} 24... f6 {[%clk 0:00:15.7]} 25.
Qc1 {[%clk 0:01:57.6]} 25... Qg4 {[%clk 0:00:10.9]} 26. Ba1 {[%clk 0:01:56]}
26... Rbd8 {[%clk 0:00:05.8]} 27. Qxc4+ {[%clk 0:01:54]} 27... Kh8 {[%clk
0:00:05.2]} 28. Rxd8 {[%clk 0:01:52.8]} 28... Rxd8 {[%clk 0:00:05.8]} 29. Rd3
{[%clk 0:01:51.5]} 29... Re8 {[%clk 0:00:03.7]} 30. Re3 {[%clk 0:01:49.9]} 30...
Rd8 {[%clk 0:00:04.1]} 31. Qe2 {[%clk 0:01:40.1]} 31... Qd7 {[%clk 0:00:02.3]}
32. Rxe4 {[%clk 0:01:18.9]} 32... Bxe4 {[%clk 0:00:03.2]} 33. Qxe4 {[%clk
0:01:19.2]} 33... Qd1+ {[%clk 0:00:03.9]} 34. Qe1 {[%clk 0:01:19.5]} 34... Qxe1+
{[%clk 0:00:04]} 35. Nxe1 {[%clk 0:01:20.4]} 35... Rd1 {[%clk 0:00:04.5]} 36.
Bc3 {[%clk 0:01:20.9]} 36... Rc1 {[%clk 0:00:05]} 37. Ba5 {[%clk 0:01:21.2]}
37... c4 {[%clk 0:00:04.6]} 38. Kf1 {[%clk 0:01:20.1]} 38... c3 {[%clk
0:00:04.5]} 39. Be4 {[%clk 0:01:19.8]} 39... Ra1 {[%clk 0:00:04.8]} 40. Bxc3
{[%clk 0:01:16.1]} 40... Rxa2 {[%clk 0:00:05.4]} 41. Nc2 {[%clk 0:01:15.5]}
41... Ra4 {[%clk 0:00:05.9]} 42. Bd3 {[%clk 0:01:15.3]} 42... Ra3 {[%clk
0:00:06.1]} 43. Nxa3 {[%clk 0:01:13.7]} 1-0